bitfinex-derivatives/quotes_SOLF0:USTF0_20250409
["timestamp","ask_amount","ask_price","bid_price","bid_amount"]
[1744176622712,45.88688726,105.64,105.59,2.3136]
[1744176622912,55.36098726,105.64,105.6,9.4766]
[1744176623107,45.88688726,105.64,105.59,2.3136]
[1744176623413,55.36068726,105.64,105.61,9.476]
[1744176624521,9.4745,105.63,105.6,9.4766]
[1744176624812,9.4745,105.63,105.59,2.3136]
[1744176625018,45.88688726,105.64,105.62,9.4746]
[1744176625318,45.88688726,105.64,105.59,2.3136]
[1744176625517,45.88688726,105.64,105.59,11.791]
[1744176626215,45.88688726,105.64,105.6,9.477]
[1744176626721,9.4751,105.63,105.6,9.477]
[1744176627123,45.88688726,105.64,105.59,2.3136]
[1744176627420,9.4745,105.63,105.59,2.3136]
[1744176627621,45.88688726,105.64,105.59,2.3136]
[1744176628520,9.4755,105.62,105.57,4.6771]
[1744176628714,19.32981503,105.63,105.58,9.4783]
[1744176629019,0.0704968,105.61,105.58,9.4783]
[1744176629219,0.0704968,105.61,105.59,9.4773]
[1744176629421,0.0704968,105.61,105.57,4.6771]
[1744176630021,0.0704968,105.61,105.59,9.4772]
[1744176630423,0.0704968,105.61,105.57,4.6771]
[1744176630617,0.0704968,105.61,105.6,9.477]
[1744176632023,45.82,105.64,105.58,65.16981503]
[1744176632223,545.76,105.67,105.6,19.32981503]
[1744176632731,545.76,105.67,105.59,2.4056]
[1744176632915,9.4717,105.66,105.59,2.4056]
[1744176633110,0.06929212,105.64,105.62,0.06902543]
[1744176634326,0.06929212,105.64,105.63,9.4739]
[1744176635021,0.06929212,105.64,105.62,9.54392543]
[1744176635213,0.06929212,105.64,105.62,0.06902543]
[1744176635415,45.90929212,105.64,105.62,0.06902543]
[1744176636826,45.90929212,105.64,105.62,9.54372543]
[1744176637419,45.90929212,105.64,105.62,0.06902543]
[1744176639530,45.90929212,105.64,105.62,9.54412543]
[1744176640816,55.38299212,105.64,105.62,0.06902543]
[1744176641423,19.32981503,105.63,105.57,4.6771]
[1744176641618,19.32981503,105.63,105.57,2.2633]
[1744176641818,19.32981503,105.61,105.55,48.1322]
[1744176642026,65.16981503,105.61,105.56,9.4804]
[1744176642329,45.84,105.61,105.55,48.1322]
[1744176642525,45.84,105.61,105.57,9.4793]
[1744176642824,0.06111206,105.59,105.53,4.5987]
[1744176643127,0.06111206,105.59,105.54,9.4819]
[1744176643329,0.06111206,105.59,105.53,4.6668]
[1744176643526,0.06111206,105.59,105.55,9.4811]
[1744176643825,9.4796,105.58,105.53,4.6668]
[1744176644022,23.80521503,105.6,105.54,9.482]
[1744176644221,0.06795553,105.57,105.53,4.6668]
[1744176644620,0.06795553,105.57,105.55,9.4808]
[1744176645928,0.06795553,105.57,105.53,4.6668]
[1744176647631,0.06795553,105.57,105.56,9.4806]
[1744176649431,5.553e-05,105.57,105.56,9.4806]
[1744176650426,5.553e-05,105.57,105.56,38.29041503]
[1744176650633,55.8769,105.64,105.61,9.476]
[1744176650824,46.403,105.64,105.57,46.5781]
[1744176651335,9.4751,105.63,105.59,9.4775]
[1744176651534,46.403,105.64,105.57,46.5781]
[1744176651726,0.06758053,105.62,105.6,0.07077691]
[1744176652332,9.4767,105.61,105.6,0.07077691]
[1744176653338,0.06758053,105.62,105.6,0.07077691]
[1744176655136,9.4761,105.61,105.6,0.07077691]
[1744176655335,0.06758053,105.62,105.6,0.07077691]
[1744176656226,9.54328053,105.62,105.6,0.07077691]
[1744176656426,19.39739556,105.62,105.6,0.07077691]
[1744176656630,44.2,105.61,105.6,0.07077691]
[1744176656830,53.6761,105.61,105.6,0.07077691]
[1744176657031,44.2,105.61,105.6,0.07077691]
[1744176657231,0.06758053,105.62,105.6,0.07077691]
[1744176658535,9.54318053,105.62,105.6,0.07077691]
[1744176658930,0.06758053,105.62,105.6,0.07077691]
[1744176660735,2.2049,105.68,105.6,63.60059194]
[1744176660934,2.2049,105.68,105.61,2.2784]
[1744176661237,2.2049,105.68,105.64,9.4731]
[1744176661434,21.53471503,105.68,105.6,44.2]
[1744176661635,23.86461503,105.68,105.6,44.2]
[1744176661934,9.53617866,105.65,105.63,0.0611828]
[1744176662525,9.4734,105.64,105.63,0.0611828]
[1744176662726,19.32981503,105.64,105.58,4.4875]
[1744176663131,53.6749,105.63,105.58,4.4875]
[1744176663332,44.2,105.63,105.54,19.32981503]
[1744176663532,19.32981503,105.62,105.53,50.9764]
[1744176663733,9.4775,105.6,105.53,50.9764]
[1744176663936,0.06408321,105.59,105.57,9.4792]
[1744176664336,0.06408321,105.59,105.56,0.06230203]
[1744176664542,0.06408321,105.59,105.58,9.4788]
[1744176664935,0.06408321,105.59,105.57,9.4793]
[1744176666240,0.06408321,105.59,105.58,9.4788]
[1744176668545,44.2,105.63,105.61,9.4758]
[1744176668834,44.2,105.63,105.57,4.595]
[1744176668835,48.7337,105.68,105.59,44.22]
[1744176669039,19.32981503,105.66,105.57,4.595]
[1744176669240,9.4739,105.64,105.57,4.595]
[1744176669435,44.22,105.65,105.58,19.32981503]
[1744176669637,0.06870432,105.62,105.59,44.28483941]
[1744176670032,0.06870432,105.62,105.61,9.4761]
[1744176671549,4.32e-06,105.62,105.61,9.4761]
[1744176674448,44.2,105.68,105.66,9.4715]
[1744176674649,44.2,105.68,105.63,44.2]
[1744176675048,44.2,105.68,105.65,9.4724]
[1744176675241,44.2,105.68,105.63,44.2]
[1744176675443,44.2,105.68,105.6,44.2]
[1744176675642,4.65237065,105.67,105.64,0.07168483]
[1744176675845,7.00707065,105.67,105.6,44.2]
[1744176676148,9.473,105.65,105.61,9.4757]
[1744176676350,9.473,105.65,105.6,44.2]
[1744176676549,9.4736,105.64,105.61,9.4757]
[1744176676953,9.54000551,105.64,105.61,9.54529891]
[1744176677547,9.4747,105.63,105.61,0.06959891]
[1744176677951,9.4752,105.62,105.61,0.06959891]
[1744176678154,44.2,105.63,105.58,9.4783]
[1744176678451,9.4757,105.62,105.59,9.4779]
[1744176678747,75.19082798,105.66,105.57,44.2]
[1744176678950,44.2,105.66,105.57,44.2]
[1744176679153,44.2,105.66,105.58,30.99082798]
[1744176679355,2.666e-05,105.63,105.6,0.05989121]
[1744176679657,2.666e-05,105.63,105.61,44.36]
[1744176679858,2.666e-05,105.63,105.62,9.4752]
[1744176682746,2.666e-05,105.63,105.61,0.06526102]
[1744176683558,2.666e-05,105.63,105.62,9.4752]
[1744176684947,2.666e-05,105.63,105.62,53.8352]
[1744176691064,2.666e-05,105.63,105.62,9.4752]
[1744176695267,2.666e-05,105.63,105.62,28.83387286]
[1744176696068,2.666e-05,105.63,105.62,9.4752]
[1744176697566,44.36,105.69,105.62,30.97493593]
[1744176697956,44.36,105.69,105.61,65.6922]
[1744176698160,44.36,105.69,105.66,9.4711]
[1744176698363,44.36,105.69,105.61,65.6922]
[1744176698565,44.36,105.69,105.62,30.97493593]
[1744176698868,44.36,105.69,105.67,9.4701]
[1744176699072,44.42872726,105.69,105.67,9.4701]
[1744176699271,44.42872726,105.69,105.67,9.53674741]
[1744176700169,0.06872726,105.69,105.67,9.53674741]
[1744176700370,0.06872726,105.69,105.68,9.4699]
[1744176700566,0.06872726,105.69,105.67,0.06664741]
[1744176701666,9.53812726,105.69,105.67,0.06664741]
[1744176702370,0.06872726,105.69,105.67,9.53724741]
[1744176702573,0.06872726,105.69,105.67,0.06664741]
[1744176703175,0.06872726,105.69,105.68,9.4699]
[1744176705773,0.06872726,105.69,105.67,9.53694741]
[1744176705976,44.42872726,105.69,105.61,48.9038]
[1744176706273,9.4714,105.67,105.64,9.473]
[1744176706574,44.36,105.69,105.64,9.473]
[1744176707174,0.06828091,105.68,105.65,0.06143391]
[1744176708073,31.04321684,105.68,105.63,9.474]
[1744176708275,30.97493593,105.68,105.61,44.36]
[1744176708474,30.97493593,105.66,105.59,104.72588835]
[1744176708672,2.2639,105.65,105.6,9.4766]
[1744176709276,9.54350206,105.64,105.61,9.4761]
[1744176709473,0.06950206,105.64,105.58,48.9038]
[1744176709973,0.06950206,105.64,105.61,9.4754]
[1744176710575,0.06950206,105.64,105.58,48.9038]
[1744176711575,0.06950206,105.64,105.62,9.4748]
[1744176711975,0.06950206,105.64,105.58,48.9038]
[1744176711976,9.54330206,105.64,105.61,9.4757]
[1744176712477,0.06950206,105.64,105.58,48.9038]
[1744176712671,0.06950206,105.64,105.62,9.4745]
[1744176713474,0.06950206,105.64,105.58,48.9038]
[1744176713982,0.06950206,105.64,105.62,9.4748]
[1744176716185,0.06950206,105.64,105.52,123.69378835]
[1744176716186,40.50443799,105.64,105.54,43.22]
[1744176716380,30.97493593,105.64,105.54,43.22]
[1744176716580,0.07255122,105.6,105.54,43.22]
[1744176716780,9.4784,105.59,105.56,9.4802]
[1744176717483,43.29255122,105.6,105.54,43.22]
[1744176717784,52.6975,105.6,105.56,9.4798]
[1744176717985,0.06653281,105.58,105.54,43.22]
[1744176718181,0.06653281,105.58,105.54,62.61642307]
[1744176718481,0.06653281,105.58,105.57,9.4795]
[1744176718889,0.06653281,105.58,105.55,9.4809]
[1744176719084,0.06653281,105.58,105.52,104.72588835]
[1744176719385,43.28653281,105.58,105.52,104.72588835]
[1744176719589,9.4798,105.57,105.54,9.4817]
[1744176719888,43.28653281,105.58,105.52,104.72588835]
[1744176720090,43.22,105.58,105.52,104.72588835]
[1744176720282,0.06886037,105.56,105.48,147.94588835]
[1744176720589,43.22,105.55,105.48,147.94588835]
[1744176720780,1.764e-05,105.53,105.49,31.04348382]
[1744176721377,1.764e-05,105.53,105.52,9.4842]
[1744176721587,1.764e-05,105.53,105.48,104.72588835]
[1744176721985,1.764e-05,105.53,105.49,0.06783836]
[1744176722285,1.764e-05,105.53,105.52,9.4842]
[1744176722489,1.764e-05,105.53,105.48,104.72588835]
[1744176722689,1.764e-05,105.53,105.51,0.07097913]
[1744176723193,2.38391764,105.53,105.48,104.72588835]
[1744176723492,2.38391764,105.53,105.46,4.7558]
[1744176723790,43.24,105.54,105.46,47.9958]
[1744176724090,43.24,105.54,105.47,31.04348382]
[1744176724389,0.07140718,105.51,105.5,9.4856]
[1744176728493,43.26,105.57,105.53,9.4826]
[1744176728791,43.26,105.57,105.49,74.30348382]
[1744176729196,43.26,105.57,105.54,9.4819]
[1744176729793,43.33108101,105.57,105.54,9.5480712]
[1744176729993,43.33108101,105.57,105.54,0.0661712]
[1744176731191,74.37456483,105.57,105.5,9.4857]
[1744176731396,9.4829,105.54,105.5,9.4857]
[1744176731594,74.30348382,105.57,105.5,9.4857]
[1744176731795,74.30348382,105.57,105.49,9.4869]
[1744176732199,31.04348382,105.55,105.46,48.0158]
[1744176732387,45.51240212,105.54,105.47,9.4885]
[1744176732586,9.4856,105.51,105.47,9.4885]
[1744176732788,52.7456,105.51,105.47,9.4885]
[1744176732990,52.7456,105.51,105.46,2.3787]
[1744176732991,43.26,105.51,105.46,2.3787]
[1744176733300,43.26,105.51,105.43,45.5188]
[1744176733495,0.06679232,105.5,105.42,2.4118]
[1744176733699,31.04348382,105.49,105.39,4.5172]
[1744176733897,9.4904,105.46,105.42,9.4927]
[1744176734199,43.26,105.45,105.38,107.13138835]
[1744176734399,43.26,105.45,105.38,109.38978835]
[1744176734591,0.06701116,105.43,105.42,9.4926]
[1744176735902,0.06701116,105.43,105.41,9.4937]
[1744176736102,0.06701116,105.43,105.4,43.26]
[1744176736996,0.06701116,105.43,105.42,9.4932]
[1744176737197,47.8662,105.48,105.4,74.30348382]
[1744176737502,45.592,105.48,105.4,74.30348382]
[1744176738008,45.592,105.48,105.45,9.49]
[1744176738310,43.28,105.48,105.45,9.49]
[1744176738503,43.34640844,105.48,105.45,9.55229272]
[1744176739513,43.34640844,105.48,105.45,0.06229272]
[1744176739810,43.34640844,105.48,105.45,9.55229272]
[1744176740712,9.4892,105.47,105.45,0.06229272]
[1744176741010,43.34640844,105.48,105.45,0.06229272]
[1744176741811,43.34640844,105.48,105.47,9.4887]
[1744176742009,0.06640844,105.48,105.47,9.4887]
[1744176742209,31.04348382,105.55,105.46,73.92348382]
[1744176742210,543.32,105.54,105.46,73.92348382]
[1744176742416,552.803,105.54,105.46,73.92348382]
[1744176742609,543.32,105.54,105.46,73.92348382]
[1744176742910,42.88,105.54,105.51,9.4846]
[1744176743116,42.88,105.54,105.46,73.92348382]
[1744176743313,42.94104043,105.54,105.51,0.06605821]
[1744176743511,52.42394043,105.54,105.51,0.06605821]
[1744176743719,42.94401493,105.54,105.51,0.06605821]
[1744176744312,9.484,105.53,105.51,0.06605821]
[1744176744520,42.94401493,105.54,105.51,0.06605821]
[1744176744922,52.42691493,105.54,105.51,0.06605821]
[1744176745613,42.94401493,105.54,105.51,0.06605821]
[1744176746112,9.4841,105.53,105.51,0.06605821]
[1744176746312,42.94401493,105.54,105.51,0.06605821]
[1744176747727,9.484,105.53,105.51,0.06605821]
[1744176748020,42.94401493,105.54,105.51,0.06605821]
[1744176748715,2.31,105.53,105.51,0.06605821]
[1744176748915,9.4842,105.52,105.51,0.06605821]
[1744176749823,33.35348382,105.53,105.44,6.9252]
[1744176750025,2.31,105.53,105.44,6.9252]
[1744176750323,9.4846,105.52,105.44,6.9252]
[1744176750513,2.31,105.53,105.44,6.9252]
[1744176750916,0.06614945,105.5,105.47,0.06759954]
[1744176751118,42.92614945,105.5,105.47,0.06759954]
[1744176752222,52.41224945,105.5,105.47,9.55589954]
[1744176752423,0.06614945,105.5,105.47,0.06759954]
[1744176752729,2.4055,105.55,105.47,0.06759954]
[1744176752922,9.4826,105.54,105.51,9.4846]
[1744176753226,2.4055,105.55,105.46,42.86]
[1744176753921,0.06068665,105.52,105.49,0.06193372]
[1744176754626,0.06068665,105.52,105.5,9.4852]
[1744176754827,42.92068665,105.52,105.49,0.06193372]
[1744176755126,9.4856,105.51,105.49,0.06193372]
[1744176756227,42.92068665,105.52,105.49,0.06193372]
[1744176758030,52.40498665,105.52,105.49,9.54843372]
[1744176758825,0.06068665,105.52,105.51,9.4851]
[1744176759030,42.86,105.57,105.5,35.64548382]
[1744176759328,52.3402,105.57,105.53,9.4825]
[1744176759529,42.86,105.6,105.51,42.86]
[1744176759924,9.4785,105.59,105.55,9.4809]
[1744176760124,0.06897805,105.57,105.55,9.4809]
[1744176760326,0.06897805,105.57,105.56,9.4806]
[1744176760539,0.06897805,105.57,105.54,0.07298578]
[1744176760830,42.92897805,105.57,105.54,0.07298578]
[1744176761330,0.06897805,105.57,105.54,0.07298578]
[1744176761630,0.06897805,105.57,105.56,9.4806]
[1744176761833,13.13308636,105.62,105.55,4.6214]
[1744176762032,42.86,105.63,105.55,6.9233]
[1744176762425,9.4767,105.61,105.57,9.4792]
[1744176762737,42.86,105.63,105.55,6.9233]
[1744176763027,9.4758,105.62,105.55,6.9233]
[1744176763234,0.06844238,105.6,105.58,0.06200179]
[1744176763627,9.54594238,105.6,105.58,0.06200179]
[1744176763931,0.06844238,105.6,105.58,0.06200179]
[1744176764129,9.4779,105.59,105.58,0.06200179]
[1744176764940,9.4779,105.59,105.51,42.86]
[1744176765126,52.3376,105.6,105.52,2.2535]
[1744176765429,42.86,105.6,105.57,9.4792]
[1744176765630,42.86,105.6,105.54,42.86]
[1744176766232,0.06651686,105.58,105.56,0.06357549]
[1744176766433,0.06651686,105.58,105.57,9.479]
[1744176767133,42.84,105.63,105.56,0.06357549]
[1744176767328,42.84,105.63,105.55,4.6044]
[1744176767721,42.84,105.63,105.6,9.4766]
[1744176767921,42.84,105.63,105.56,31.04348382]
[1744176768234,42.84,105.63,105.56,73.88348382]
[1744176768436,0.07277976,105.61,105.58,0.0671323]
[1744176769634,0.07277976,105.61,105.58,9.5454323]
[1744176769836,0.07277976,105.61,105.58,0.0671323]
[1744176770836,42.82,105.6,105.58,0.0671323]
[1744176772232,45.1339,105.6,105.58,0.0671323]
[1744176772539,9.4779,105.59,105.58,0.0671323]
[1744176773935,54.6114,105.6,105.58,0.0671323]
[1744176775041,9.4779,105.59,105.58,0.0671323]
[1744176775546,14.0851,105.59,105.5,2.2779]
[1744176775841,31.04348382,105.58,105.48,42.82]
[1744176776034,42.82,105.57,105.5,9.4851]
[1744176776236,9.4838,105.53,105.5,9.4851]
[1744176776631,9.4848,105.52,105.5,0.06055198]
[1744176777040,4.48804068,105.53,105.5,0.06055198]
[1744176777346,9.4842,105.52,105.5,0.06055198]
[1744176777842,4.48804068,105.53,105.5,0.06055198]
[1744176778041,6.66934068,105.53,105.5,0.06055198]
[1744176778946,16.15324068,105.53,105.5,9.54615198]
[1744176779243,4.48804068,105.53,105.5,0.06055198]
[1744176779449,2.29904068,105.53,105.51,9.4847]
[1744176779745,2.29904068,105.53,105.5,0.06055198]
[1744176780140,11.78294068,105.53,105.5,0.06055198]
[1744176780339,2.29904068,105.53,105.5,0.06055198]
[1744176780747,0.07174068,105.53,105.5,0.06055198]
[1744176781248,0.07174068,105.53,105.51,9.4845]
[1744176781451,0.07174068,105.53,105.5,0.06055198]
[1744176781948,9.55554068,105.53,105.5,9.54605198]
[1744176782244,0.07174068,105.53,105.5,0.06055198]
[1744176782449,0.07174068,105.53,105.45,49.7656]
[1744176782650,9.4858,105.51,105.47,9.4878]
[1744176782850,42.84,105.51,105.45,47.4486]
[1744176783042,42.84,105.51,105.45,9.4899]
[1744176783239,2.3949,105.5,105.42,543.18]
[1744176783551,2.3949,105.5,105.45,0.06033153]
[1744176783552,0.06322253,105.47,105.45,0.06033153]
[1744176783750,42.90322253,105.47,105.45,0.06033153]
[1744176784051,42.90322253,105.47,105.42,9.4928]
[1744176784249,42.84,105.47,105.42,9.4928]
[1744176784449,9.4924,105.43,105.38,104.72588835]
[1744176784651,42.84,105.43,105.38,104.72588835]
[1744176785151,9.56397139,105.42,105.39,0.07078629]
[1744176786949,9.56397139,105.42,105.39,9.56648629]
[1744176787250,0.07027139,105.42,105.39,9.56648629]
[1744176788051,0.07027139,105.42,105.4,9.4949]
[1744176789945,0.07027139,105.42,105.41,9.4941]
[1744176790753,0.07027139,105.42,105.4,9.4948]
[1744176791354,0.07027139,105.42,105.41,9.4941]
[1744176792256,42.86,105.46,105.43,9.4918]
[1744176792650,42.86,105.46,105.4,2.1766]
[1744176793147,42.86,105.46,105.37,33.39908382]
[1744176793452,9.4938,105.42,105.4,0.06604889]
[1744176793856,42.95140709,105.43,105.4,0.06604889]
[1744176794653,9.4937,105.42,105.4,0.06604889]
[1744176794855,42.95140709,105.43,105.4,0.06604889]
[1744176795057,42.95140709,105.43,105.41,9.4941]
[1744176796557,42.95140709,105.43,105.4,9.56074889]
[1744176796758,42.95140709,105.43,105.4,0.06604889]
[1744176796953,0.07140709,105.43,105.4,0.06604889]
[1744176797149,42.88,105.47,105.4,42.94604889]
[1744176797361,2.4126,105.48,105.41,33.28898382]
[1744176797660,2.3227,105.52,105.49,9.4865]
[1744176797859,2.3227,105.52,105.45,73.92348382]
[1744176798057,11.8078,105.52,105.48,9.4875]
[1744176798254,2.3227,105.52,105.45,42.88]
[1744176798455,0.06865867,105.51,105.49,0.0655911]
[1744176799365,9.486,105.5,105.49,0.0655911]
[1744176799565,0.06865867,105.51,105.49,0.0655911]
[1744176799864,0.06865867,105.51,105.49,9.5521911]
[1744176800459,0.06865867,105.51,105.49,0.0655911]
[1744176800962,9.486,105.5,105.49,0.0655911]
[1744176801163,0.06865867,105.51,105.49,0.0655911]
[1744176801568,9.486,105.5,105.49,0.0655911]
[1744176802152,9.55415867,105.51,105.49,0.0655911]
[1744176802356,0.06865867,105.51,105.49,0.0655911]
[1744176802862,0.06865867,105.51,105.49,9.5519911]
[1744176803064,0.06865867,105.51,105.49,0.0655911]
[1744176803960,9.55425867,105.51,105.49,0.0655911]
[1744176804465,0.06865867,105.51,105.49,0.0655911]
[1744176804669,9.55415867,105.51,105.49,0.0655911]
[1744176805266,9.486,105.5,105.49,0.0655911]
[1744176806664,9.55415867,105.51,105.49,0.0655911]
[1744176806962,0.06865867,105.51,105.49,0.0655911]
[1744176807559,0.06865867,105.51,105.5,9.486]
[1744176808364,0.06865867,105.51,105.49,0.0655911]
[1744176808762,9.55465867,105.51,105.49,0.0655911]
[1744176809072,0.06865867,105.51,105.49,0.0655911]
[1744176810166,45.1112,105.56,105.49,0.0655911]
[1744176810374,9.482,105.55,105.48,42.84]
[1744176810969,9.482,105.55,105.51,9.4846]
[1744176811270,0.06985118,105.54,105.52,0.06025076]
[1744176811464,0.06985118,105.54,105.52,9.54435076]
[1744176811864,0.06985118,105.54,105.52,0.06025076]
[1744176812062,0.06985118,105.54,105.53,9.4833]
[1744176812265,42.84,105.59,105.53,2.1754]
[1744176812766,52.3186,105.59,105.53,2.1754]
[1744176812970,42.84,105.59,105.53,2.1754]
[1744176813166,42.84,105.59,105.56,9.48]
[1744176813475,0.06115069,105.57,105.56,9.48]
[1744176813771,0.06115069,105.57,105.55,9.54686228]
[1744176814071,0.06115069,105.57,105.55,0.06576228]
[1744176814568,42.82,105.56,105.55,0.06576228]
[1744176814769,52.3006,105.56,105.55,0.06576228]
[1744176818274,42.82,105.56,105.55,0.06576228]
[1744176819173,52.3006,105.56,105.55,0.06576228]
[1744176819376,42.82,105.56,105.5,2.3942]
[1744176819763,9.4829,105.54,105.5,2.3942]
[1744176819967,42.82,105.56,105.5,2.3942]
[1744176820276,31.04348382,105.59,105.5,2.3942]
[1744176820481,42.82,105.59,105.5,33.43768382]
[1744176820776,0.06680437,105.56,105.53,0.06989391]
[1744176821074,0.06680437,105.56,105.54,9.4819]
[1744176823263,0.06680437,105.56,105.53,9.55279391]
[1744176823675,9.54760437,105.56,105.53,9.55279391]
[1744176823978,0.06680437,105.56,105.53,9.55279391]
[1744176825282,42.82,105.55,105.53,0.06989391]
[1744176825481,76.25938382,105.55,105.47,2.3571]
[1744176825683,76.25938382,105.55,105.48,9.4874]
[1744176825978,31.04348382,105.53,105.45,2.2424]
[1744176826282,42.82,105.52,105.45,11.7326]
[1744176826578,0.06140437,105.5,105.47,0.06760763]
[1744176827977,0.06140437,105.5,105.47,9.55570763]
[1744176828277,0.06140437,105.5,105.47,0.06760763]
[1744176828475,0.06140437,105.5,105.49,9.4869]
[1744176829076,0.06140437,105.5,105.48,9.4874]
[1744176829880,0.06140437,105.5,105.47,0.06760763]
[1744176830073,0.06140437,105.5,105.49,9.4869]
[1744176831376,0.06140437,105.5,105.48,9.4874]
[1744176831586,0.06140437,105.5,105.47,2.42670763]
[1744176832090,0.06140437,105.5,105.49,9.4869]
[1744176833783,0.06140437,105.5,105.48,9.4874]
[1744176834083,0.06140437,105.5,105.47,2.42670763]
[1744176835984,0.06140437,105.5,105.49,9.4869]
[1744176837593,42.82,105.52,105.5,9.4858]
[1744176838590,42.89191131,105.52,105.5,9.55693452]
[1744176839479,52.37611131,105.52,105.5,0.07113452]
[1744176839982,42.89191131,105.52,105.5,0.07113452]
[1744176840385,0.07191131,105.52,105.5,0.07113452]
[1744176840787,0.07191131,105.52,105.51,9.4851]
[1744176842294,0.07191131,105.52,105.5,9.55653452]
[1744176842598,0.07191131,105.52,105.5,0.07113452]
[1744176842998,0.07191131,105.52,105.51,9.4851]
[1744176843786,0.07191131,105.52,105.5,9.55673452]
[1744176844192,42.87191131,105.52,105.5,0.07113452]
[1744176844498,52.35671131,105.52,105.5,0.07113452]
[1744176844900,9.4851,105.51,105.5,0.07113452]
[1744176845196,42.87191131,105.52,105.5,0.07113452]
[1744176846400,9.4851,105.51,105.5,0.07113452]
[1744176847395,9.488,105.48,105.44,49.7323]
[1744176847699,52.2875,105.49,105.44,49.7323]
[1744176848302,9.4879,105.48,105.45,9.4899]
[1744176848598,9.55570189,105.48,105.45,9.56193548]
[1744176848795,0.06780189,105.48,105.45,0.07203548]
[1744176850202,9.55620189,105.48,105.45,9.56233548]
[1744176850403,0.06780189,105.48,105.45,0.07203548]
[1744176850805,9.4887,105.47,105.45,0.07203548]
[1744176852503,9.4896,105.46,105.45,0.07203548]
[1744176852703,52.2896,105.46,105.45,0.07203548]
[1744176852902,42.8,105.46,105.4,4.7382]
[1744176853604,9.493,105.43,105.4,9.4946]
[1744176854112,9.55583192,105.43,105.4,9.56731579]
[1744176854701,0.06283192,105.43,105.4,0.07271579]
[1744176854910,42.88283192,105.43,105.4,0.07271579]
[1744176856306,531.90348382,105.42,105.32,22.94942868]
[1744176856504,9.4983,105.37,105.33,9.5009]
[1744176856706,52.3183,105.37,105.33,9.5009]
[1744176857406,0.06681563,105.36,105.34,0.06202602]
[1744176857804,9.56581563,105.36,105.34,0.06202602]
[1744176858513,0.06681563,105.36,105.34,0.06202602]
[1744176859215,0.06681563,105.36,105.34,9.56242602]
[1744176859809,0.06681563,105.36,105.34,0.06202602]
[1744176862008,9.4995,105.35,105.34,0.06202602]
[1744176863019,0.06681563,105.36,105.25,73.86348382]
[1744176863317,42.82,105.35,105.31,9.5029]
[1744176863515,4.5324,105.38,105.29,31.04348382]
[1744176863715,2.2817,105.38,105.31,31.04348382]
[1744176863912,11.7793,105.38,105.34,9.4999]
[1744176864111,0.06377885,105.36,105.33,0.02150838]
[1744176864514,0.06377885,105.36,105.34,9.5]
[1744176864706,0.06377885,105.36,105.33,0.02150838]
[1744176864911,0.06377885,105.36,105.35,9.4995]
[1744176865114,543.68,105.42,105.33,31.0649922]
[1744176865310,9.4947,105.41,105.33,31.04348382]
[1744176865624,9.4947,105.41,105.37,9.497]
[1744176866016,9.4955,105.4,105.36,9.4982]
[1744176866429,0.06244009,105.39,105.37,0.06145651]
[1744176867125,0.06244009,105.39,105.37,9.55885651]
[1744176869329,0.06244009,105.39,105.38,9.4968]
[1744176870028,0.06244009,105.39,105.37,9.55875651]
[1744176870326,0.06244009,105.39,105.37,0.06145651]
[1744176871428,0.06244009,105.39,105.38,9.4968]
[1744176872126,0.06244009,105.39,105.37,0.06145651]
[1744176873129,0.06244009,105.39,105.38,9.4968]
[1744176873630,42.82,105.45,105.42,9.4927]
[1744176873929,42.82,105.45,105.37,73.86348382]
[1744176874131,42.82,105.45,105.42,9.4927]
[1744176874431,42.82,105.45,105.38,62.0]
[1744176874629,42.88152718,105.45,105.42,0.07224062]
[1744176874925,42.82,105.45,105.42,0.07224062]
[1744176875120,9.492,105.44,105.42,0.07224062]
[1744176877335,9.4923,105.43,105.42,0.07224062]
[1744176877639,42.88549415,105.45,105.36,4.6408]
[1744176877939,45.0294,105.44,105.36,4.6408]
[1744176878121,548.4232,105.47,105.37,73.84348382]
[1744176878529,9.4901,105.46,105.37,73.84348382]
[1744176878833,0.06100935,105.43,105.42,9.4924]
[1744176879136,9.491,105.45,105.37,73.84348382]
[1744176879332,0.07182289,105.44,105.41,0.06177462]
[1744176879936,0.07182289,105.44,105.42,9.4927]
[1744176880237,0.07182289,105.44,105.41,0.06177462]